[Event "Fagernes Chess GM-Swiss 2024"]
[Site "Fagernes"]
[Date "2024.03.26"]
[Round "3.31"]
[White "Makka, Ioulia"]
[Black "Vestby-Ellingsen, Mads"]
[Result "0-1"]
[ECO "C01"]
[WhiteElo "1983"]
[BlackElo "2336"]
[Annotator "RC"]
[PlyCount "104"]
[EventDate "2024.03.25"]
[EventType "swiss"]
[EventCountry "NOR"]
[SourceTitle "playchess.com"]
[Source "ChessBase"]
[SourceQuality "1"]
[TimeControl "40/6000+30:2400+30"]

1. e4 {[%emt 0:00:03]} e6 {[%emt 0:02:16]} 2. d4 {[%emt 0:00:20]} d5 {[%emt 0:00:09]} 3. Nc3 {[%emt 0:00:07]} Bb4 {[%emt 0:00:16]} 4. exd5 {[%emt 0:01:27]} exd5 {[%emt 0:00:36]} 5. Bd3 {[%emt 0:00:44]} Ne7 {[%emt 0:01:39]} 6. Qf3 {[%emt 0:03:46]} c5 {[%emt 0:07:54]} 7. a3 {[%emt 0:39:25]} Bxc3+ {[%emt 0:16:52]} 8. bxc3 {[%emt 0:00:53]} c4 {[%emt 0:07:38]} 9. Be2 {[%emt 0:03:00]} Bf5 {[%emt 0:01:40]} 10. Bd1 {[%emt 0:00:16]} Be4 {[%emt 0:00:41]} 11. Qh3 {[%emt 0:01:16]} Qd7 {[%emt 0:01:40]} 12. Qxd7+ {[%emt 0:04:57]} Kxd7 {[%emt 0:00:46]} 13. f3 {[%emt 0:00:50]} Bg6 {[%emt 0:03:00]} 14. Ne2 {[%emt 0:01:18]} f6 {[%emt 0:00:18]} 15. Rb1 {[%emt 0:09:49]} b6 {[%emt 0:04:14]} 16. h4 {[%emt 0:04:23]} Nbc6 {[%emt 0:00:36]} 17. Bf4 {[%emt 0:02:39]} Bf7 {[%emt 0:01:26]} 18. Kd2 {[%emt 0:01:12]} Rag8 {[%emt 0:07:05]} 19. Nc1 {[%emt 0:04:38]} g5 {[%emt 0:01:34]} 20. hxg5 {[%emt 0:01:14]} fxg5 {[%emt 0:00:12]} 21. Bg3 {[%emt 0:01:35]} Nf5 {[%emt 0:00:51]} 22. Bf2 {[%emt 0:00:27]} h5 {[%emt 0:00:35]} 23. Na2 {[%emt 0:00:37]} h4 {[%emt 0:04:06]} 24. Nb4 {[%emt 0:00:51]} Nce7 {[%emt 0:00:24]} 25. Na6 {[%emt 0:06:15]} Ng6 {[%emt 0:00:56]} 26. a4 {[%emt 0:01:39]} Nf4 {[%emt 0:01:01]} 27. Rh2 {[%emt 0:01:43]} Ng3 {[%emt 0:04:01]} 28. Kc1 {[%emt 0:00:17]} Re8 {[%emt 0:01:15]} 29. a5 {[%emt 0:01:37]} Kc6 {[%emt 0:00:27]} 30. Nb4+ {[%emt 0:01:20]} Kb7 {[%emt 0:00:15]} 31. axb6 {[%emt 0:01:07]} axb6 {[%emt 0:00:23]} 32. Kb2 {[%emt 0:03:01]} Bg6 {[%emt 0:03:25]} 33. Ra1 {[%emt 0:02:03]} Rh7 {[%emt 0:00:45]} 34. Ra4 {[%emt 0:08:01]} Rhe7 {[%emt 0:00:57]} 35. Ra1 {[%emt 0:03:16]} Re1 {[%emt 0:01:14]} 36. Bxe1 {[%emt 0:00:55]} Rxe1 {[%emt 0:00:08]} 37. Nxd5 {[%emt 0:01:04]} Nxd5 {[%emt 0:00:13]} 38. f4 {[%emt 0:00:08]} Nxf4 {[%emt 0:08:47]} 39. Bf3+ {[%emt 0:00:34]} Re4 {[%emt 0:00:07]} 40. Ka3 {[%emt 0:00:44]} b5 {[%emt 0:01:39]} 41. Kb2 {[%emt 0:14:31]} Kb6 {[%emt 0:00:09]} 42. Bxe4 {[%emt 0:00:18]} Bxe4 {[%emt 0:00:10]} 43. Rg1 {[%emt 0:00:35]} Bc6 {[%emt 0:00:51]} 44. Ka1 {[%emt 0:05:18]} Bb7 {[%emt 0:00:29]} 45. Kb2 {[%emt 0:00:22]} Be4 {[%emt 0:00:08]} 46. Kb1 {[%emt 0:02:45]} Nfe2 {[%emt 0:00:21]} 47. Re1 {[%emt 0:00:33]} Nxc3+ {[%emt 0:00:10]} 48. Kb2 {[%emt 0:00:26]} b4 {[%emt 0:02:15]} 49. Ra1 {[%emt 0:04:49]} Nce2 {[%emt 0:00:19]} 50. Rd1 {[%emt 0:01:01]} c3+ {[%emt 0:00:30]} 51. Kb3 {[%emt 0:00:23]} Kb5 {[%emt 0:00:08]} 52. d5 {[%emt 0:01:56]} Nc1+ {[%emt 0:00:08]} 0-1

[Event "Fagernes Chess GM-Swiss 2024"]
[Site "Fagernes"]
[Date "2024.03.26"]
[Round "3.32"]
[White "Nordahl, Helge"]
[Black "Stark, John"]
[Result "1/2-1/2"]
[ECO "A40"]
[WhiteElo "2330"]
[BlackElo "1947"]
[Annotator "RC"]
[PlyCount "61"]
[EventDate "2024.03.25"]
[EventType "swiss"]
[EventCountry "NOR"]
[SourceTitle "playchess.com"]
[Source "ChessBase"]
[SourceQuality "1"]
[TimeControl "40/6000+30:2400+30"]

1. d4 {[%emt 0:00:03]} e6 {[%emt 0:00:05]} 2. c4 {[%emt 0:00:22]} b6 {[%emt 0:00:07]} 3. Nc3 {[%emt 0:02:26]} Bb7 {[%emt 0:00:34]} 4. a3 {[%emt 0:00:39]} f5 {[%emt 0:00:23]} 5. Nf3 {[%emt 0:02:09]} Nf6 {[%emt 0:00:13]} 6. g3 {[%emt 0:03:26]} Be7 {[%emt 0:01:14]} 7. Bg2 {[%emt 0:01:27]} Ne4 {[%emt 0:00:11]} 8. Qc2 {[%emt 0:05:25]} Nxc3 {[%emt 0:00:19]} 9. Qxc3 {[%emt 0:03:30]} Bf6 {[%emt 0:00:05]} 10. b4 {[%emt 0:06:16]} O-O {[%emt 0:03:30]} 11. Bb2 {[%emt 0:01:26]} d6 {[%emt 0:01:59]} 12. O-O {[%emt 0:06:31]} Qe7 {[%emt 0:08:14]} 13. Qb3 {[%emt 0:05:12]} Nd7 {[%emt 0:00:38]} 14. Rac1 {[%emt 0:05:47]} Kh8 {[%emt 0:19:14]} 15. Rfd1 {[%emt 0:01:58]} Rfc8 {[%emt 0:07:26]} 16. e3 {[%emt 0:04:45]} g6 {[%emt 0:09:00]} 17. Rd2 {[%emt 0:07:14]} Bg7 {[%emt 0:03:38]} 18. Qd1 {[%emt 0:05:33]} Nf6 {[%emt 0:02:04]} 19. Rdc2 {[%emt 0:04:05]} Be4 {[%emt 0:00:23]} 20. Rd2 {[%emt 0:02:32]} Bb7 {[%emt 0:00:09]} 21. Ne1 {[%emt 0:04:25]} Bxg2 {[%emt 0:04:22]} 22. Nxg2 {[%emt 0:01:54]} Ne4 {[%emt 0:00:03]} 23. Rd3 {[%emt 0:01:26]} Kg8 {[%emt 0:10:30]} 24. f3 {[%emt 0:01:37]} Nf6 {[%emt 0:00:57]} 25. Rc2 {[%emt 0:02:37]} e5 {[%emt 0:03:12]} 26. dxe5 {[%emt 0:06:01]} dxe5 {[%emt 0:00:05]} 27. Rcd2 {[%emt 0:00:33]} Re8 {[%emt 0:01:16]} 28. f4 {[%emt 0:06:21]} exf4 {[%emt 0:07:00]} 29. exf4 {[%emt 0:00:05]} a5 {[%emt 0:04:08]} 30. Ne3 {[%emt 0:05:16]} axb4 {[%emt 0:05:51]} 31. axb4 {[%emt 0:00:14]} 1/2-1/2

[Event "Fagernes Chess GM-Swiss 2024"]
[Site "Fagernes"]
[Date "2024.03.26"]
[Round "3.33"]
[White "Rynning, Rune Kleiven"]
[Black "Kistrup, Nicolai"]
[Result "0-1"]
[ECO "B52"]
[WhiteElo "1813"]
[BlackElo "2324"]
[Annotator "RC"]
[PlyCount "76"]
[EventDate "2024.03.25"]
[EventType "swiss"]
[EventCountry "NOR"]
[SourceTitle "playchess.com"]
[Source "ChessBase"]
[SourceQuality "1"]
[TimeControl "40/6000+30:2400+30"]

1. e4 {[%emt 0:00:03]} c5 {[%emt 0:00:03]} 2. Nf3 {[%emt 0:00:11]} d6 {[%emt 0:00:04]} 3. Bb5+ {[%emt 0:00:10]} Bd7 {[%emt 0:00:21]} 4. Bxd7+ {[%emt 0:00:11]} Qxd7 {[%emt 0:00:05]} 5. O-O {[%emt 0:00:15]} Nc6 {[%emt 0:02:17]} 6. c3 {[%emt 0:00:08]} Nf6 {[%emt 0:01:09]} 7. Re1 {[%emt 0:00:12]} e6 {[%emt 0:00:36]} 8. d4 {[%emt 0:00:11]} cxd4 {[%emt 0:02:34]} 9. cxd4 {[%emt 0:00:08]} d5 {[%emt 0:00:09]} 10. e5 {[%emt 0:00:07]} Ne4 {[%emt 0:00:42]} 11. Nbd2 {[%emt 0:00:09]} Nxd2 {[%emt 0:01:20]} 12. Bxd2 {[%emt 0:00:08]} Bb4 {[%emt 0:00:45]} 13. Bxb4 {[%emt 0:03:29]} Nxb4 {[%emt 0:00:59]} 14. a3 {[%emt 0:00:23]} Nc6 {[%emt 0:00:26]} 15. Rc1 {[%emt 0:00:13]} a5 {[%emt 0:03:27]} 16. Rc3 {[%emt 0:02:48]} a4 {[%emt 0:03:21]} 17. Rd3 {[%emt 0:23:39]} Na5 {[%emt 0:03:28]} 18. Ng5 {[%emt 0:01:35]} h6 {[%emt 0:07:25]} 19. Nh3 {[%emt 0:02:11]} Nc4 {[%emt 0:01:11]} 20. Qg4 {[%emt 0:04:39]} g6 {[%emt 0:09:18]} 21. b3 {[%emt 0:25:45]} Nxa3 {[%emt 0:09:41]} 22. Ra1 {[%emt 0:04:31]} Nc2 {[%emt 0:03:00]} 23. Rxa4 {[%emt 0:02:41]} Rxa4 {[%emt 0:00:17]} 24. bxa4 {[%emt 0:00:09]} Qxa4 {[%emt 0:00:39]} 25. Qd1 {[%emt 0:11:39]} O-O {[%emt 0:02:18]} 26. Qg4 {[%emt 0:13:36]} Rc8 {[%emt 0:03:16]} 27. g3 {[%emt 0:02:24]} Rc4 {[%emt 0:05:14]} 28. Nf4 {[%emt 0:03:24]} Rxd4 {[%emt 0:00:42]} 29. Rxd4 {[%emt 0:03:06]} Qxd4 {[%emt 0:00:37]} 30. Qh4 {[%emt 0:01:57]} Qa1+ {[%emt 0:04:50]} 31. Kg2 {[%emt 0:00:11]} Ne1+ {[%emt 0:00:50]} 32. Kh3 {[%emt 0:00:10]} Qxe5 {[%emt 0:00:25]} 33. Qxh6 {[%emt 0:00:56]} Qf5+ {[%emt 0:01:58]} 34. g4 {[%emt 0:00:16]} Qe4 {[%emt 0:00:12]} 35. Qg5 {[%emt 0:01:52]} Qf3+ {[%emt 0:00:25]} 36. Kh4 {[%emt 0:00:07]} Qxf2+ {[%emt 0:00:11]} 37. Kh3 {[%emt 0:00:12]} Qe3+ {[%emt 0:00:16]} 38. Kh4 {[%emt 0:00:11]} Nf3+ {[%emt 0:00:09]} 0-1

[Event "Fagernes Chess GM-Swiss 2024"]
[Site "Fagernes"]
[Date "2024.03.26"]
[Round "3.34"]
[White "Prraneeth Vuppala"]
[Black "Mihajlov, Svetoslav"]
[Result "1-0"]
[ECO "A36"]
[WhiteElo "2506"]
[BlackElo "2094"]
[Annotator "TA"]
[PlyCount "61"]
[EventDate "2024.03.25"]
[EventType "swiss"]
[EventCountry "NOR"]
[SourceTitle "playchess.com"]
[Source "ChessBase"]
[SourceQuality "1"]
[TimeControl "40/6000+30:2400+30"]

{[%evp 19,61,22,22,5,11,0,13,16,34,8,13,6,21,19,29,42,39,29,29,10,30,17,19,16,7,10,75,86,130,130,150,179,302,279,296,285,259,163,381,370,358,344,377,362]} 1. c4 {[%emt 0:22:39]} c5 {[%emt 0:00:44]} 2. Nc3 {[%emt 0:00:31]} Nc6 {[%emt 0:00:15]} 3. g3 {[%emt 0:00:41]} g6 {[%emt 0:00:15]} 4. Bg2 {[%emt 0:00:06]} Bg7 {[%emt 0:00:13]} 5. d3 {[%emt 0:01:38]} d6 {[%emt 0:00:32]} 6. e3 {[%emt 0:00:36]} e5 {[%emt 0:02:45]} 7. Nge2 {[%emt 0:00:26]} Nge7 {[%emt 0:00:10]} 8. b3 {[%emt 0:00:13]} O-O {[%emt 0:03:27]} 9. Bb2 {[%emt 0:00:19]} a6 {[%emt 0:00:53]} 10. O-O {[%emt 0:02:15]} Rb8 {[%emt 0:00:25]} 11. Rc1 {[%emt 0:02:00]} b5 {[%emt 0:01:50]} 12. Qd2 {[%emt 0:00:46]} Be6 {[%emt 0:07:23]} 13. Nd5 {[%emt 0:02:03] The position is equal.} Bd7 {[%emt 0:24:37]} 14. Rfd1 {[%emt 0:02:22]} Nf5 {[%emt 0:08:18]} 15. cxb5 {[%emt 0:10:52]} axb5 {[%emt 0:00:08]} 16. b4 {[%emt 0:00:10]} Nxb4 {[%emt 0:02:24]} 17. Nxb4 {[%emt 0:00:05]} cxb4 {[%emt 0:00:05]} 18. Qxb4 {[%emt 0:03:08]} Be6 {[%emt 0:03:12]} 19. Nc3 {[%emt 0:05:24][%cal Oc3d5]} Ne7 {[%emt 0:10:52]} 20. d4 {[%emt 0:04:00]} ({Don't play} 20. Nxb5 Nd5 21. Bxd5 (21. Qxd6 $2 {too greedy.} Rxb5 22. Ba3 Qa5 $19) 21... Bxd5 $15) 20... exd4 {[%emt 0:00:57]} 21. exd4 {[%emt 0:00:17][%cal Od4d5]} Bc4 $1 {[%emt 0:00:52]} 22. d5 {[%emt 0:14:10]} Nc8 {[%emt 0:22:42]} (22... Ra8 $11 {remains equal.}) 23. a4 $16 {[%emt 0:07:48][%cal Ba2a4,Ba4a5][%mdl 32]} Na7 {[%emt 0:00:05]} 24. a5 $36 {[%emt 0:04:33][%mdl 2048] White is on the roll.} Nc8 {[%emt 0:04:02]} 25. Ne4 {[%emt 0:02:05][%cal Bc3e4,Be4d2,Bd2f3][%mdl 32]} f5 {[%emt 0:06:12]} (25... Bxb2 $142 26. Qxb2 f5) 26. Bxg7 $18 {[%emt 0:00:37]} Kxg7 {[%emt 0:00:06]} 27. Nd2 {[%emt 0:00:43]} Ra8 {[%emt 0:00:14]} 28. Nf3 {[%emt 0:01:20] [#] And now Nd4 would win.} Qxa5 $2 {[%emt 0:02:31]} (28... Kh8 {was necessary.} 29. Qb2+ Qf6) 29. Qb2+ {[%emt 0:00:06]} Kg8 {[%emt 0:02:04]} 30. Ra1 {[%emt 0:00:11]} Ba2 {[%emt 0:00:11]} 31. Rd2 {[%emt 0:01:45] Weighted Error Value: White=0.11 (very precise) /Black=0.35.  Mistake:       	---       	Black=3      Inaccurate:     	White=2     	Black=1      OK:         	White=8     	Black=1      Best:        	White=3     	Black=5      Strong:       	---       	Black=1} 1-0

[Event "Fagernes Chess GM-Swiss 2024"]
[Site "Fagernes"]
[Date "2024.03.26"]
[Round "3.35"]
[White "Shehzad, Shazil"]
[Black "Amundsen, Ask"]
[Result "1-0"]
[ECO "A57"]
[WhiteElo "2301"]
[BlackElo "2069"]
[Annotator "RC"]
[PlyCount "101"]
[EventDate "2024.03.25"]
[EventType "swiss"]
[EventCountry "NOR"]
[SourceTitle "playchess.com"]
[Source "ChessBase"]
[SourceQuality "1"]
[TimeControl "40/6000+30:2400+30"]

1. d4 {[%emt 0:00:45]} Nf6 {[%emt 0:00:12]} 2. Nf3 {[%emt 0:01:01]} c5 {[%emt 0:00:26]} 3. d5 {[%emt 0:00:52]} b5 {[%emt 0:00:41]} 4. c4 {[%emt 0:00:08]} d6 {[%emt 0:05:53]} 5. cxb5 {[%emt 0:00:45]} a6 {[%emt 0:00:29]} 6. e3 {[%emt 0:01:34]} g6 {[%emt 0:03:23]} 7. Nc3 {[%emt 0:00:25]} Bg7 {[%emt 0:00:42]} 8. a4 {[%emt 0:02:10]} O-O {[%emt 0:03:55]} 9. Bd2 {[%emt 0:04:31]} Bb7 {[%emt 0:05:33]} 10. e4 {[%emt 0:30:33]} e6 {[%emt 0:16:41]} 11. dxe6 {[%emt 0:04:42]} fxe6 {[%emt 0:01:09]} 12. e5 {[%emt 0:03:57]} dxe5 {[%emt 0:09:31]} 13. Bc4 {[%emt 0:02:05]} Bd5 {[%emt 0:20:59]} 14. Qe2 {[%emt 0:01:08]} e4 {[%emt 0:02:08]} 15. Ng5 {[%emt 0:01:44]} axb5 {[%emt 0:02:40]} 16. Bxb5 {[%emt 0:05:51]} Qb6 {[%emt 0:12:38]} 17. a5 {[%emt 0:08:24]} Rxa5 {[%emt 0:03:43]} 18. Rxa5 {[%emt 0:05:17]} Qxa5 {[%emt 0:00:10]} 19. O-O {[%emt 0:00:15]} Qb6 {[%emt 0:00:58]} 20. Na4 {[%emt 0:02:41]} Qd6 {[%emt 0:01:08]} 21. Be3 {[%emt 0:01:06]} Nbd7 {[%emt 0:00:59]} 22. Rc1 {[%emt 0:00:52]} Rc8 {[%emt 0:01:07]} 23. b4 {[%emt 0:02:22]} c4 {[%emt 0:02:15]} 24. Nc5 {[%emt 0:01:01]} Rb8 {[%emt 0:03:03]} 25. Bxc4 {[%emt 0:10:25]} Rxb4 {[%emt 0:01:54]} 26. Qd2 {[%emt 0:11:08]} Ng4 {[%emt 0:03:05]} 27. Bf4 {[%emt 0:02:03]} Qxc5 {[%emt 0:01:41]} 28. Bxd5 {[%emt 0:00:06]} Qxd5 {[%emt 0:03:26]} 29. Qxb4 {[%emt 0:00:09]} Bf8 {[%emt 0:00:55]} 30. Qxe4 {[%emt 0:00:31]} Bc5 {[%emt 0:01:19]} 31. Rf1 {[%emt 0:05:11]} Nxf2 {[%emt 0:02:40]} 32. Qxd5 {[%emt 0:00:40]} exd5 {[%emt 0:00:06]} 33. Rxf2 {[%emt 0:00:08]} h6 {[%emt 0:02:37]} 34. Nf3 {[%emt 0:01:40]} g5 {[%emt 0:00:00]} 35. Bd2 {[%emt 0:00:44]} Bxf2+ {[%emt 0:00:00]} 36. Kxf2 {[%emt 0:00:02]} Kf7 {[%emt 0:00:00]} 37. Bc3 {[%emt 0:00:45]} Nc5 {[%emt 0:00:11]} 38. Ke3 {[%emt 0:00:09]} Ne6 {[%emt 0:00:37]} 39. Nd4 {[%emt 0:00:20]} Nf4 {[%emt 0:00:33]} 40. g3 {[%emt 0:00:12]} Ng6 {[%emt 0:00:26]} 41. Nf5 {[%emt 0:04:52]} h5 {[%emt 0:02:50]} 42. Kd4 {[%emt 0:02:03]} h4 {[%emt 0:02:41]} 43. g4 {[%emt 0:03:27]} Nf4 {[%emt 0:00:27]} 44. Bd2 {[%emt 0:01:01]} Nh3 {[%emt 0:00:45]} 45. Be3 {[%emt 0:00:18]} Ke6 {[%emt 0:00:30]} 46. Nh6 {[%emt 0:00:16]} Kf6 {[%emt 0:03:02]} 47. Kxd5 {[%emt 0:00:40]} Nf4+ {[%emt 0:00:33]} 48. Bxf4 {[%emt 0:01:36]} gxf4 {[%emt 0:00:03]} 49. h3 {[%emt 0:00:55]} f3 {[%emt 0:00:11]} 50. Nf5 {[%emt 0:00:05]} f2 {[%emt 0:00:13]} 51. Ne3 {[%emt 0:00:02]} 1-0

[Event "Fagernes Chess GM-Swiss 2024"]
[Site "Fagernes"]
[Date "2024.03.26"]
[Round "3.36"]
[White "Melaa, Sondre"]
[Black "Lilliehook, Victor"]
[Result "1-0"]
[ECO "C54"]
[WhiteElo "2285"]
[BlackElo "2060"]
[Annotator "RC"]
[PlyCount "79"]
[EventDate "2024.03.25"]
[EventType "swiss"]
[EventCountry "NOR"]
[SourceTitle "playchess.com"]
[Source "ChessBase"]
[SourceQuality "1"]
[TimeControl "40/6000+30:2400+30"]

1. e4 {[%emt 0:00:07]} e5 {[%emt 0:00:05]} 2. Nf3 {[%emt 0:00:26]} Nc6 {[%emt 0:00:03]} 3. Bc4 {[%emt 0:00:13]} Bc5 {[%emt 0:00:07]} 4. c3 {[%emt 0:00:16]} Nf6 {[%emt 0:00:09]} 5. d3 {[%emt 0:00:13]} d6 {[%emt 0:00:23]} 6. O-O {[%emt 0:00:39]} a6 {[%emt 0:00:38]} 7. a4 {[%emt 0:00:37]} O-O {[%emt 0:00:31]} 8. Re1 {[%emt 0:02:09]} Ba7 {[%emt 0:01:05]} 9. h3 {[%emt 0:00:14]} h6 {[%emt 0:00:11]} 10. Nbd2 {[%emt 0:00:33]} Re8 {[%emt 0:00:43]} 11. b4 {[%emt 0:00:46]} Be6 {[%emt 0:02:45]} 12. Bxe6 {[%emt 0:00:29]} Rxe6 {[%emt 0:00:29]} 13. Bb2 {[%emt 0:00:37]} d5 {[%emt 0:18:36]} 14. Qc2 {[%emt 0:01:51]} dxe4 {[%emt 0:06:15]} 15. dxe4 {[%emt 0:02:53]} b5 {[%emt 0:05:13]} 16. Nb3 {[%emt 0:11:41]} Qe8 {[%emt 0:07:19]} 17. Red1 {[%emt 0:10:55]} bxa4 {[%emt 0:11:37]} 18. Nbd2 {[%emt 0:02:43]} Ne7 {[%emt 0:03:14]} 19. Rxa4 {[%emt 0:12:32]} Ng6 {[%emt 0:04:27]} 20. Rda1 {[%emt 0:03:23]} Nf4 {[%emt 0:05:16]} 21. c4 {[%emt 0:14:39]} Bd4 {[%emt 0:06:12]} 22. Bxd4 {[%emt 0:04:45]} Ne2+ {[%emt 0:00:35]} 23. Kh1 {[%emt 0:00:33]} Nxd4 {[%emt 0:00:59]} 24. Nxd4 {[%emt 0:00:36]} exd4 {[%emt 0:00:01]} 25. f3 {[%emt 0:00:13]} Rb8 {[%emt 0:06:41]} 26. Nb3 {[%emt 0:01:02]} Reb6 {[%emt 0:06:42]} 27. Qd2 {[%emt 0:03:23]} Qe5 {[%emt 0:07:28]} 28. Nc5 {[%emt 0:05:40]} a5 {[%emt 0:03:05]} 29. Nd3 {[%emt 0:00:44]} Qe6 {[%emt 0:03:56]} 30. c5 {[%emt 0:02:51]} Rb5 {[%emt 0:00:27]} 31. bxa5 {[%emt 0:00:51]} Nd7 {[%emt 0:02:13]} 32. a6 {[%emt 0:04:09]} Nxc5 {[%emt 0:01:50]} 33. Nxc5 {[%emt 0:04:30]} Rxc5 {[%emt 0:00:01]} 34. Rxd4 {[%emt 0:00:21]} Qe8 {[%emt 0:02:24]} 35. a7 {[%emt 0:08:42]} Ra8 {[%emt 0:00:06]} 36. Rd7 {[%emt 0:00:49]} Rc2 {[%emt 0:04:33]} 37. Qd5 {[%emt 0:02:19]} Rc5 {[%emt 0:01:01]} 38. Qb7 {[%emt 0:02:08]} Rc2 {[%emt 0:01:32]} 39. Rxc7 {[%emt 0:01:19]} Rd2 {[%emt 0:00:34]} 40. Rxf7 {[%emt 0:01:31]} 1-0

[Event "Fagernes Chess GM-Swiss 2024"]
[Site "Fagernes"]
[Date "2024.03.26"]
[Round "3.37"]
[White "Al-Tarboush, Ward"]
[Black "Thangavel, Gokul"]
[Result "1-0"]
[ECO "B11"]
[WhiteElo "2277"]
[BlackElo "1990"]
[Annotator "RC"]
[PlyCount "131"]
[EventDate "2024.03.25"]
[EventType "swiss"]
[EventCountry "NOR"]
[SourceTitle "playchess.com"]
[Source "ChessBase"]
[SourceQuality "1"]
[TimeControl "40/6000+30:2400+30"]

1. e4 {[%emt 0:00:02]} c6 {[%emt 0:03:34]} 2. Nf3 {[%emt 0:00:15]} d5 {[%emt 0:00:08]} 3. Nc3 {[%emt 0:00:06]} dxe4 {[%emt 0:00:04]} 4. Nxe4 {[%emt 0:00:02]} Nf6 {[%emt 0:00:10]} 5. Nxf6+ {[%emt 0:00:04]} exf6 {[%emt 0:00:05]} 6. Bc4 {[%emt 0:00:03]} Qe7+ {[%emt 0:00:29]} 7. Be2 {[%emt 0:00:37]} Qc7 {[%emt 0:00:03]} 8. O-O {[%emt 0:01:36]} Bd6 {[%emt 0:00:03]} 9. d4 {[%emt 0:00:27]} O-O {[%emt 0:00:13]} 10. Re1 {[%emt 0:00:39]} c5 {[%emt 0:08:03]} 11. d5 {[%emt 0:02:44]} Nd7 {[%emt 0:00:15]} 12. c4 {[%emt 0:00:11]} Ne5 {[%emt 0:00:10]} 13. h3 {[%emt 0:00:10]} Bd7 {[%emt 0:00:04]} 14. Be3 {[%emt 0:00:25]} Rae8 {[%emt 0:03:52]} 15. Qd2 {[%emt 0:00:50]} Re7 {[%emt 0:02:22]} 16. Nxe5 {[%emt 0:01:38]} fxe5 {[%emt 0:00:56]} 17. Rad1 {[%emt 0:05:35]} h6 {[%emt 0:19:36]} 18. b4 {[%emt 0:01:36]} b6 {[%emt 0:00:10]} 19. bxc5 {[%emt 0:00:26]} bxc5 {[%emt 0:00:09]} 20. Bh5 {[%emt 0:08:46]} f5 {[%emt 0:07:25]} 21. Qc2 {[%emt 0:20:42]} Kh7 {[%emt 0:44:17]} 22. Bc1 {[%emt 0:19:02]} g6 {[%emt 0:00:47]} 23. Be2 {[%emt 0:00:02]} e4 {[%emt 0:04:16]} 24. Bb2 {[%emt 0:01:09]} f4 {[%emt 0:00:49]} 25. Bg4 {[%emt 0:00:46]} Rfe8 {[%emt 0:05:52]} 26. Bf6 {[%emt 0:04:13]} Rf7 {[%emt 0:01:44]} 27. Bc3 {[%emt 0:00:01]} Bxg4 {[%emt 0:01:22]} 28. hxg4 {[%emt 0:00:06]} Qe7 {[%emt 0:00:07]} 29. f3 {[%emt 0:01:24]} e3 {[%emt 0:00:11]} 30. Rb1 {[%emt 0:00:20]} Be5 {[%emt 0:03:37]} 31. Re2 {[%emt 0:03:05]} Qf6 {[%emt 0:00:36]} 32. Bxe5 {[%emt 0:01:33]} Rxe5 {[%emt 0:00:03]} 33. Qb2 {[%emt 0:01:05]} Rg7 {[%emt 0:02:04]} 34. Qb8 {[%emt 0:00:25]} h5 {[%emt 0:00:02]} 35. Qc8 {[%emt 0:02:48]} Rge7 {[%emt 0:03:20]} 36. g5 {[%emt 0:03:42]} Qd6 {[%emt 0:00:57]} 37. Qf8 {[%emt 0:01:10]} Rd7 {[%emt 0:00:16]} 38. Qxf4 {[%emt 0:01:14]} Rxd5 {[%emt 0:00:24]} 39. Qxd6 {[%emt 0:00:15]} R5xd6 {[%emt 0:00:04]} 40. Rxe3 {[%emt 0:00:13]} Rd4 {[%emt 0:00:14]} 41. Rc1 {[%emt 0:42:18]} Rd2 {[%emt 0:03:54]} 42. Ra3 {[%emt 0:00:00]} Re2 {[%emt 0:02:19]} 43. Rb1 {[%emt 0:00:00]} Re5 {[%emt 0:00:08]} 44. Rb8 {[%emt 0:00:00]} Rxg5 {[%emt 0:00:28]} 45. Ra8 {[%emt 0:00:00]} Rd1+ {[%emt 0:09:48]} 46. Kh2 {[%emt 0:00:00]} Rf5 {[%emt 0:01:32]} 47. R3xa7+ {[%emt 0:00:00]} Kh6 {[%emt 0:00:05]} 48. Re7 {[%emt 0:00:00]} Rd4 {[%emt 0:13:53]} 49. Re4 {[%emt 0:00:00]} Rf4 {[%emt 0:00:15]} 50. Re6 {[%emt 0:00:00]} Rf7 {[%emt 0:07:23]} 51. Rg8 {[%emt 0:00:00]} Rg7 {[%emt 0:00:11]} 52. Rh8+ {[%emt 0:00:00]} Rh7 {[%emt 0:00:04]} 53. Rxh7+ {[%emt 0:00:00]} Kxh7 {[%emt 0:00:15]} 54. Re4 {[%emt 0:00:00]} Rd2 {[%emt 0:00:07]} 55. Re5 {[%emt 0:00:00]} Rxa2 {[%emt 0:00:10]} 56. Rxc5 {[%emt 0:00:00]} Kg7 {[%emt 0:01:02]} 57. Rc8 {[%emt 0:00:00]} g5 {[%emt 0:01:47]} 58. c5 {[%emt 0:00:00]} g4 {[%emt 0:05:10]} 59. Kg3 {[%emt 0:00:00]} gxf3 {[%emt 0:01:35]} 60. gxf3 {[%emt 0:00:00]} Ra3 {[%emt 0:00:33]} 61. c6 {[%emt 0:00:00]} h4+ {[%emt 0:00:33]} 62. Kg4 {[%emt 0:00:00]} h3 {[%emt 0:00:05]} 63. c7 {[%emt 0:00:00]} Rc3 {[%emt 0:00:53]} 64. Kg3 {[%emt 0:00:00]} Kh7 {[%emt 0:00:19]} 65. Kh2 {[%emt 0:00:00]} Kg7 {[%emt 0:00:52]} 66. f4 {[%emt 0:00:00]} 1-0